fUST/lending_fUST_20241112
["ID","MTS","AMOUNT","RATE_DAILY","PERIOD"]
[342008643,1731360653682,-500.0,0.00023561,2]
[342008644,1731360653692,-545.11,0.00023561,2]
[342008645,1731360653701,-500.0,0.00023561,2]
[342008646,1731360653711,-500.0,0.00023561,2]
[342008647,1731360653721,-500.0,0.00023561,2]
[342008648,1731360653730,-659.99,0.00023561,2]
[342008649,1731360653739,-500.0,0.00023561,2]
[342008650,1731360653749,-3723.47,0.00023561,2]
[342008651,1731360653760,-1715.14,0.00023561,2]
[342008652,1731360653770,-701.05,0.00023561,2]
[342008653,1731360653780,-1069.59,0.00023561,2]
[342008654,1731360653790,-500.0,0.00023561,2]
[342008655,1731360653800,-500.0,0.00023561,2]
[342008656,1731360653809,-4222.88,0.00023561,2]
[342008657,1731360653819,-784.01,0.00023561,2]
[342008658,1731360653831,-2071.63,0.00023561,2]
[342008659,1731360653840,-500.0,0.00023561,2]
[342008660,1731360653850,-500.0,0.00023561,2]
[342008661,1731360653859,-520.39,0.00023561,2]
[342008662,1731360653869,-500.0,0.00023561,2]
[342008663,1731360653878,-1549.43,0.00023561,2]
[342008664,1731360653887,-500.0,0.00023561,2]
[342008665,1731360653897,-4961.39,0.00023561,2]
[342008666,1731360653906,-500.0,0.00023561,2]
[342008667,1731360653915,-500.0,0.00023561,2]
[342008668,1731360653924,-500.0,0.00023561,2]
[342008669,1731360653934,-1296.98,0.00023561,2]
[342008670,1731360653943,-500.0,0.00023561,2]
[342008671,1731360653952,-500.0,0.00023561,2]
[342008672,1731360653961,-913.88,0.00023561,2]
[342008673,1731360654061,-512.8,0.00023561,2]
[342008674,1731360654070,-500.0,0.00023561,2]
[342008675,1731360654083,-500.0,0.00023561,7]
[342008676,1731360654092,-500.0,0.00023561,7]
[342008677,1731360654102,-3185.86615466,0.00023772,2]
[342008678,1731360654111,-500.0,0.00023835,7]
[342008679,1731360654121,-168.32336014,0.00023835,7]
[342008680,1731360654131,-251.48533781,0.00023835,7]
[342008681,1731360654140,-528.227829,0.00023835,7]
[342008682,1731360654149,-500.0,0.00023835,7]
[342008683,1731360654159,-151.0,0.00023835,7]
[342008684,1731360654168,-500.0,0.00023835,2]
[342008685,1731360654177,-547.53,0.00023835,2]
[342008686,1731360654186,-396.59313521,0.00023835,2]
[342008687,1731360654195,-500.0,0.00023835,2]
[342008688,1731360654205,-500.0,0.00023835,2]
[342008689,1731360654214,-500.0,0.00023835,2]
[342008690,1731360654224,-738.39,0.00023835,2]
[342008691,1731360654233,-500.0,0.00023835,2]
[342008692,1731360654242,-500.0,0.00023835,2]
[342008693,1731360654251,-500.0,0.00023835,2]
[342008694,1731360654260,-500.0,0.00023835,2]
[342008695,1731360654269,-500.0,0.00023835,2]
[342008696,1731360654279,-500.0,0.00023835,2]
[342008697,1731360654288,-1866.48,0.00023835,2]
[342008698,1731360654297,-500.0,0.00023835,2]
[342008699,1731360654306,-598.98,0.00023835,2]
[342008700,1731360654316,-786.79,0.00023835,2]
[342008701,1731360654328,-898.65,0.00023835,2]
[342008702,1731360654337,-1724.2,0.00023835,2]
[342008703,1731360654346,-628.5863512,0.00023835,2]
[342008704,1731360654356,-540.38,0.00023835,2]
[342008705,1731360654366,-1627.88,0.00023835,2]
[342008706,1731360654375,-500.0,0.00023835,2]
[342008707,1731360654385,-699.54,0.00023835,2]
[342008708,1731360654394,-500.0,0.00023835,2]
[342008709,1731360654404,-552.74220727,0.00023835,2]
[342008710,1731360654413,-500.0,0.00023835,2]
[342008711,1731360654423,-500.0,0.00023835,2]
[342008712,1731360654432,-1094.01,0.00023835,2]
[342008713,1731360654441,-500.0,0.00023835,2]
[342008714,1731360654451,-17001.68,0.00023835,2]
[342008715,1731360654461,-539.31,0.00023835,2]
[342008716,1731360654471,-1594.23,0.00023835,2]
[342008717,1731360654480,-500.0,0.00023835,2]
[342008718,1731360654490,-3482.34,0.00023835,2]
[342008719,1731360654499,-500.0,0.00023835,2]
[342008720,1731360654508,-763.2,0.00023835,2]
[342008721,1731360654518,-1210.63,0.00023835,2]
[342008722,1731360654527,-701.5,0.00023835,2]
[342008723,1731360654536,-861.42,0.00023835,2]
[342008724,1731360654546,-1641.8,0.00023835,2]
[342008725,1731360654555,-1250.97,0.00023835,2]
[342008726,1731360654567,-500.0,0.00023835,2]
[342008727,1731360654585,-1168.75,0.00023835,2]
[342008728,1731360654595,-545.11,0.00023835,2]
[342008729,1731360654604,-500.0,0.00023835,2]
[342008730,1731360654615,-500.0,0.00023835,2]
[342008731,1731360654624,-500.0,0.00023835,2]
[342008732,1731360654633,-659.99,0.00023835,2]
[342008733,1731360654642,-500.0,0.00023835,2]
[342008734,1731360654651,-3723.47,0.00023835,2]
[342008735,1731360654660,-1715.14,0.00023835,2]
[342008736,1731360654670,-701.05,0.00023835,2]
[342008737,1731360654679,-1069.59,0.00023835,2]
[342008738,1731360654689,-500.0,0.00023835,2]
[342008739,1731360654701,-500.0,0.00023835,2]
[342008740,1731360654712,-4222.88,0.00023835,2]
[342008741,1731360654721,-784.01,0.00023835,2]
[342008742,1731360654731,-2071.63,0.00023835,2]
[342008743,1731360654740,-500.0,0.00023835,2]
[342008744,1731360654750,-348.70104959,0.00023835,2]
[342008745,1731360654760,-520.39,0.00023835,2]
[342008746,1731360654770,-500.0,0.00023835,2]
[342008747,1731360654780,-1549.43,0.00023835,2]
[342008748,1731360654790,-500.0,0.00023835,2]
[342008749,1731360654800,-4961.39,0.00023835,2]
[342008750,1731360654810,-500.0,0.00023835,2]
[342008751,1731360654820,-500.0,0.00023835,2]
[342008752,1731360654832,-500.0,0.00023835,2]
[342008753,1731360654842,-1296.98,0.00023835,2]
[342008754,1731360654851,-500.0,0.00023835,2]
[342008755,1731360654860,-500.0,0.00023835,2]
[342008756,1731360654870,-913.88,0.00023835,2]
[342008757,1731360654880,-512.8,0.00023835,2]
[342008758,1731360654889,-500.0,0.00023835,2]
[342008759,1731360654899,-181.5006074,0.00023836,2]
[342008760,1731360654909,-166.666666,0.00023969,2]
[342008761,1731360654918,-50000.0,0.00024,2]
[342008762,1731360654928,-151.0,0.00024,7]
[342008763,1731360654937,-30000.0,0.000241,2]
[342008764,1731360654951,-61285.38381705,0.000241,2]
[342008765,1731360654966,-151.0,0.000241,7]
[342008766,1731360654980,-500.0,0.00024109,7]
[342008767,1731360654994,-157.35985293,0.00024109,7]
[342008768,1731360655009,-160.24430504,0.00024109,7]
[342008769,1731360655023,-200.08,0.00024109,7]
[342008770,1731360655038,-500.0,0.00024109,7]
[342008771,1731360655052,-500.0,0.00024109,2]
[342008772,1731360655068,-547.53,0.00024109,2]
[342008773,1731360655081,-500.0,0.00024109,2]
[342008774,1731360655096,-500.0,0.00024109,2]
[342008775,1731360655109,-500.0,0.00024109,2]
[342008776,1731360655122,-738.39,0.00024109,2]
[342008777,1731360655136,-500.0,0.00024109,2]
[342008778,1731360655148,-500.0,0.00024109,2]
[342008779,1731360655162,-500.0,0.00024109,2]
[342008780,1731360655177,-500.0,0.00024109,2]
[342008781,1731360655192,-500.0,0.00024109,2]
[342008782,1731360655207,-500.0,0.00024109,2]
[342008783,1731360655222,-1866.48,0.00024109,2]
[342008784,1731360655233,-500.0,0.00024109,2]
[342008785,1731360655246,-598.98,0.00024109,2]
[342008786,1731360655261,-786.79,0.00024109,2]
[342008787,1731360655274,-898.65,0.00024109,2]
[342008788,1731360655286,-1724.2,0.00024109,2]
[342008789,1731360655298,-540.38,0.00024109,2]
[342008790,1731360655312,-1627.88,0.00024109,2]
[342008791,1731360655325,-500.0,0.00024109,2]
[342008792,1731360655339,-699.54,0.00024109,2]
[342008793,1731360655353,-629.62665749,0.00024109,2]
[342008794,1731360655366,-500.0,0.00024109,2]
[342008795,1731360655379,-500.0,0.00024109,2]
[342008796,1731360655392,-1094.01,0.00024109,2]
[342008797,1731360655404,-500.0,0.00024109,2]
[342008798,1731360655417,-17001.68,0.00024109,2]
[342008799,1731360655429,-539.31,0.00024109,2]
[342008800,1731360655442,-1594.23,0.00024109,2]
[342008801,1731360655454,-500.0,0.00024109,2]
[342008802,1731360655466,-3482.34,0.00024109,2]
[342008803,1731360655479,-500.0,0.00024109,2]
[342008804,1731360655492,-763.2,0.00024109,2]
[342008805,1731360655506,-1210.63,0.00024109,2]
[342008806,1731360655518,-701.5,0.00024109,2]
[342008807,1731360655530,-861.42,0.00024109,2]
[342008808,1731360655543,-1641.8,0.00024109,2]
[342008809,1731360655555,-1250.97,0.00024109,2]
[342008810,1731360655568,-301.76747432,0.00024109,2]
[342008811,1731360655583,-1168.75,0.00024109,2]
[342008812,1731360655595,-545.11,0.00024109,2]
[342008813,1731360655607,-500.0,0.00024109,2]
[342008814,1731360655621,-500.0,0.00024109,2]
[342008815,1731360655633,-500.0,0.00024109,2]
[342008816,1731360655646,-659.99,0.00024109,2]
[342008817,1731360655658,-500.0,0.00024109,2]
[342008818,1731360655673,-3723.47,0.00024109,2]
[342008819,1731360655686,-1715.14,0.00024109,2]
[342008820,1731360655699,-701.05,0.00024109,2]
[342008821,1731360655711,-1069.59,0.00024109,2]
[342008822,1731360655724,-500.0,0.00024109,2]
[342008823,1731360655736,-500.0,0.00024109,2]
[342008824,1731360655748,-4222.88,0.00024109,2]
[342008825,1731360655760,-784.01,0.00024109,2]
[342008826,1731360655774,-2071.63,0.00024109,2]
[342008827,1731360655786,-500.0,0.00024109,2]
[342008828,1731360655798,-520.39,0.00024109,2]
[342008829,1731360655811,-500.0,0.00024109,2]
[342008830,1731360655824,-1549.43,0.00024109,2]
[342008831,1731360655838,-337.01600077,0.00024109,2]
[342008832,1731360655851,-4961.39,0.00024109,2]
[342008833,1731360655863,-500.0,0.00024109,2]
[342008834,1731360655876,-500.0,0.00024109,2]
[342008835,1731360655889,-500.0,0.00024109,2]
[342008836,1731360655901,-1296.98,0.00024109,2]
[342008837,1731360655914,-500.0,0.00024109,2]
[342008838,1731360655927,-913.88,0.00024109,2]
[342008839,1731360655940,-512.8,0.00024109,2]
[342008840,1731360655952,-500.0,0.00024109,2]
[342008841,1731360655965,-163.0,0.00024164,2]
[342008842,1731360655977,-347.0,0.00024164,2]
[342008843,1731360655989,-500.0,0.00024383,7]
[342008844,1731360656002,-200.14,0.00024383,7]
[342008845,1731360656015,-500.0,0.00024383,7]
[342008846,1731360656027,-151.0,0.00024383,7]
[342008847,1731360656039,-500.0,0.00024383,2]
[342008848,1731360656052,-547.53,0.00024383,2]
[342008849,1731360656063,-500.0,0.00024383,2]
[342008850,1731360656072,-244.98045656,0.00024383,2]
[342008851,1731360656085,-500.0,0.00024383,2]
[342008852,1731360656095,-738.39,0.00024383,2]
[342008853,1731360656259,-500.0,0.00024383,2]
[342008854,1731360656270,-500.0,0.00024383,2]
[342008855,1731360656285,-500.0,0.00024383,2]
[342008856,1731360656294,-500.0,0.00024383,2]
[342008857,1731360656304,-500.0,0.00024383,2]
[342008858,1731360656314,-500.0,0.00024383,2]
[342008859,1731360656327,-1866.48,0.00024383,2]
[342008860,1731360656337,-500.0,0.00024383,2]
[342008861,1731360656347,-598.98,0.00024383,2]
[342008862,1731360656357,-786.79,0.00024383,2]
[342008863,1731360656366,-898.65,0.00024383,2]
[342008864,1731360656376,-1724.2,0.00024383,2]
[342008865,1731360656386,-540.38,0.00024383,2]
[342008866,1731360656395,-1627.88,0.00024383,2]
[342008867,1731360656405,-500.0,0.00024383,2]
[342008868,1731360656414,-699.54,0.00024383,2]
[342008869,1731360656424,-500.0,0.00024383,2]
[342008870,1731360656433,-500.0,0.00024383,2]
[342008871,1731360656442,-1094.01,0.00024383,2]
[342008872,1731360656451,-500.0,0.00024383,2]
[342008873,1731360656460,-17001.68,0.00024383,2]
[342008874,1731360656470,-539.31,0.00024383,2]
[342008875,1731360656479,-1594.23,0.00024383,2]
[342008876,1731360656488,-500.0,0.00024383,2]
[342008877,1731360656497,-3482.34,0.00024383,2]
[342008878,1731360656506,-500.0,0.00024383,2]
[342008879,1731360656516,-763.2,0.00024383,2]
[342008880,1731360656525,-1210.63,0.00024383,2]
[342008881,1731360656535,-701.5,0.00024383,2]
[342008882,1731360656544,-861.42,0.00024383,2]
[342008883,1731360656554,-1641.8,0.00024383,2]
[342008884,1731360656563,-1250.97,0.00024383,2]
[342008885,1731360656573,-1168.75,0.00024383,2]
[342008886,1731360656586,-545.11,0.00024383,2]
[342008887,1731360656596,-500.0,0.00024383,2]
[342008888,1731360656605,-500.0,0.00024383,2]
[342008889,1731360656617,-500.0,0.00024383,2]
[342008890,1731360656627,-659.99,0.00024383,2]
[342008891,1731360656636,-500.0,0.00024383,2]
[342008892,1731360656646,-3723.47,0.00024383,2]
[342008893,1731360656656,-1715.14,0.00024383,2]
[342008894,1731360656666,-701.05,0.00024383,2]
[342008895,1731360656676,-1069.59,0.00024383,2]
[342008896,1731360656687,-500.0,0.00024383,2]
[342008897,1731360656696,-530.26643491,0.00024383,2]
[342008898,1731360656706,-4222.88,0.00024383,2]
[342008899,1731360656715,-784.01,0.00024383,2]
[342008900,1731360656725,-2071.63,0.00024383,2]
[342008901,1731360656735,-500.0,0.00024383,2]
[342008902,1731360656746,-520.39,0.00024383,2]
[342008903,1731360656756,-500.0,0.00024383,2]
[342008904,1731360656765,-1549.43,0.00024383,2]
[342008905,1731360656775,-4961.39,0.00024383,2]
[342008906,1731360656784,-500.0,0.00024383,2]
[342008907,1731360656794,-602.45153554,0.00024383,2]
[342008908,1731360656803,-500.0,0.00024383,2]
[342008909,1731360656813,-1296.98,0.00024383,2]
[342008910,1731360656823,-500.0,0.00024383,2]
[342008911,1731360656834,-913.88,0.00024383,2]
[342008912,1731360656844,-512.8,0.00024383,2]
[342008913,1731360656853,-500.0,0.00024383,2]
[342008914,1731360656863,-1101.8577852,0.00024475,2]
[342008915,1731360656873,-166.666666,0.00024482,2]
[342008916,1731360656882,-200.0,0.0002451,13]
[342008917,1731360656892,-902.38921136,0.00024657,7]
[342008918,1731360656902,-500.0,0.00024657,7]
[342008919,1731360656911,-500.0,0.00024657,2]
[342008920,1731360656921,-547.53,0.00024657,2]
[342008921,1731360656930,-500.0,0.00024657,2]
[342008922,1731360656940,-500.0,0.00024657,2]
[342008923,1731360656950,-738.39,0.00024657,2]
[342008924,1731360656959,-500.0,0.00024657,2]
[342008925,1731360656973,-500.0,0.00024657,2]
[342008926,1731360656983,-500.0,0.00024657,2]
[342008927,1731360656992,-508.71541682,0.00024657,2]
[342008928,1731360657001,-500.0,0.00024657,2]
[342008929,1731360657011,-500.0,0.00024657,2]
[342008930,1731360657020,-1866.48,0.00024657,2]
[342008931,1731360657029,-500.0,0.00024657,2]
[342008932,1731360657039,-598.98,0.00024657,2]
[342008933,1731360657048,-786.79,0.00024657,2]
[342008934,1731360657057,-898.65,0.00024657,2]
[342008935,1731360657066,-1724.2,0.00024657,2]
[342008936,1731360657076,-540.38,0.00024657,2]
[342008937,1731360657086,-1627.88,0.00024657,2]
[342008938,1731360657095,-500.0,0.00024657,2]
[342008939,1731360657105,-699.54,0.00024657,2]
[342008940,1731360657115,-500.0,0.00024657,2]
[342008941,1731360657124,-500.0,0.00024657,2]
[342008942,1731360657134,-1094.01,0.00024657,2]
[342008943,1731360657143,-500.0,0.00024657,2]
[342008944,1731360657153,-17001.68,0.00024657,2]
[342008945,1731360657163,-539.31,0.00024657,2]
[342008946,1731360657173,-1594.23,0.00024657,2]
[342008947,1731360657183,-500.0,0.00024657,2]
[342008948,1731360657192,-3482.34,0.00024657,2]
[342008949,1731360657202,-500.0,0.00024657,2]
[342008950,1731360657212,-763.2,0.00024657,2]
[342008951,1731360657222,-1210.63,0.00024657,2]
[342008952,1731360657231,-701.5,0.00024657,2]
[342008953,1731360657241,-861.42,0.00024657,2]
[342008954,1731360657250,-1641.8,0.00024657,2]
[342008955,1731360657259,-1250.97,0.00024657,2]
[342008956,1731360657269,-1168.75,0.00024657,2]
[342008957,1731360657279,-545.11,0.00024657,2]
[342008958,1731360657289,-500.0,0.00024657,2]
[342008959,1731360657298,-500.0,0.00024657,2]
[342008960,1731360657307,-500.0,0.00024657,2]
[342008961,1731360657316,-659.99,0.00024657,2]
[342008962,1731360657327,-500.0,0.00024657,2]
[342008963,1731360657337,-3723.47,0.00024657,2]
[342008964,1731360657346,-1715.14,0.00024657,2]
[342008965,1731360657356,-701.05,0.00024657,2]
[342008966,1731360657366,-1069.59,0.00024657,2]
[342008967,1731360657375,-164.45432115,0.00024657,2]
[342008968,1731360657384,-4222.88,0.00024657,2]
[342008969,1731360657393,-784.01,0.00024657,2]
[342008970,1731360657403,-2071.63,0.00024657,2]
[342008971,1731360657413,-625.14716083,0.00024657,2]
[342008972,1731360657422,-520.39,0.00024657,2]
[342008973,1731360657431,-500.0,0.00024657,2]
[342008974,1731360657441,-1549.43,0.00024657,2]
[342008975,1731360657450,-4961.39,0.00024657,2]
[342008976,1731360657460,-500.0,0.00024657,2]
[342008977,1731360657470,-500.0,0.00024657,2]
[342008978,1731360657479,-200.0,0.00024657,2]
[342008979,1731360657489,-200.0,0.00024657,2]
[342008980,1731360657498,-200.0,0.00024657,2]
[342008981,1731360657508,-200.0,0.00024657,2]
[342008982,1731360657517,-200.0,0.00024657,2]
[342008983,1731360657526,-200.0,0.00024657,2]
[342008984,1731360657536,-200.0,0.00024657,2]
[342008985,1731360657546,-1296.98,0.00024657,2]
[342008986,1731360657555,-500.0,0.00024657,2]
[342008987,1731360657565,-913.88,0.00024657,2]
[342008988,1731360657575,-512.8,0.00024657,2]
[342008989,1731360657586,-500.0,0.00024657,2]
[342008990,1731360657596,-200.0,0.00024658,2]
[342008991,1731360657606,-151.0,0.00024658,7]
[342008992,1731360657616,-151.0,0.00024658,7]
[342008993,1731360657626,-151.0,0.00024658,7]
[342008994,1731360657635,-151.0,0.00024658,7]
[342008995,1731360657644,-151.0,0.00024658,7]
[342008996,1731360657653,-151.0,0.00024658,7]
[342008997,1731360657663,-151.0,0.00024658,7]
[342008998,1731360657672,-151.0,0.00024658,7]
[342008999,1731360657683,-151.0,0.00024658,7]
[342009000,1731360657693,-151.0,0.00024658,7]
[342009001,1731360657703,-237.629221,0.00024658,7]
[342009002,1731360657713,-151.0,0.00024658,7]
[342009003,1731360657722,-500.0,0.00024658,2]
[342009004,1731360657732,-500.0,0.00024658,2]
[342009005,1731360657741,-500.0,0.00024658,2]
[342009006,1731360657751,-500.0,0.00024658,2]
[342009007,1731360657760,-500.0,0.00024658,2]
[342009008,1731360657770,-500.0,0.00024658,2]
[342009009,1731360657780,-500.0,0.00024658,2]
[342009010,1731360657789,-500.0,0.00024658,2]
[342009011,1731360657799,-500.0,0.00024658,2]
[342009012,1731360657809,-500.0,0.00024658,2]
[342009013,1731360657819,-500.0,0.00024658,2]
[342009014,1731360657830,-500.0,0.00024658,2]
[342009015,1731360657839,-500.0,0.00024658,2]
[342009016,1731360657848,-500.0,0.00024658,2]
[342009017,1731360657857,-500.0,0.00024658,2]
[342009018,1731360657867,-500.0,0.00024658,2]
[342009019,1731360657876,-500.0,0.00024658,2]
[342009020,1731360657886,-500.0,0.00024658,2]
[342009021,1731360657895,-500.0,0.00024658,2]
[342009022,1731360657904,-500.0,0.00024658,2]
[342009023,1731360657913,-500.0,0.00024658,2]
[342009024,1731360657923,-500.0,0.00024658,2]
[342009025,1731360657932,-500.0,0.00024658,2]
[342009026,1731360657942,-500.0,0.00024658,2]
[342009027,1731360657952,-500.0,0.00024658,2]
[342009028,1731360657962,-500.0,0.00024658,2]
[342009029,1731360657972,-500.0,0.00024658,2]
[342009030,1731360657982,-500.0,0.00024658,2]
[342009031,1731360657991,-500.0,0.00024658,2]
[342009032,1731360658001,-500.0,0.00024658,2]
[342009033,1731360658011,-500.0,0.00024658,2]
[342009034,1731360658020,-500.0,0.00024658,2]
[342009035,1731360658035,-500.0,0.00024658,2]
[342009036,1731360658045,-500.0,0.00024658,2]
[342009037,1731360658054,-500.0,0.00024658,2]
[342009038,1731360658063,-525.90770563,0.00024658,2]
[342009039,1731360658072,-500.0,0.00024658,2]
[342009040,1731360658084,-500.0,0.00024658,2]
[342009041,1731360658093,-500.0,0.00024658,2]
[342009042,1731360658102,-500.0,0.00024658,2]
[342009043,1731360658111,-266.63811896,0.00024658,2]
[342009044,1731360658121,-500.0,0.00024658,2]
[342009045,1731360658130,-500.0,0.00024658,2]
[342009046,1731360658138,-500.0,0.00024658,2]
[342009047,1731360658147,-500.0,0.00024658,2]
[342009048,1731360658157,-500.0,0.00024658,2]
[342009049,1731360658167,-500.0,0.00024658,2]
[342009050,1731360658176,-500.0,0.00024658,2]
[342009051,1731360658186,-500.0,0.00024658,2]
[342009052,1731360658196,-165.66777032,0.00024658,2]
[342009053,1731360658206,-522.84676488,0.00024658,2]
[342009054,1731360658216,-500.0,0.00024658,2]
[342009055,1731360658225,-522.84676488,0.00024658,2]
[342009056,1731360658234,-522.84676488,0.00024658,2]
[342009057,1731360658243,-500.0,0.00024658,2]
[342009058,1731360658253,-522.84676488,0.00024658,2]
[342009059,1731360658262,-500.0,0.00024658,2]
[342009060,1731360658271,-522.84676488,0.00024658,2]
[342009061,1731360658280,-522.84676488,0.00024658,2]
[342009062,1731360658290,-522.84676488,0.00024658,2]
[342009063,1731360658300,-522.84676488,0.00024658,2]
[342009064,1731360658309,-522.84676488,0.00024658,2]
[342009065,1731360658319,-522.84676488,0.00024658,2]
[342009066,1731360658332,-522.84676488,0.00024658,2]
[342009067,1731360658342,-522.84676488,0.00024658,2]
[342009068,1731360658352,-522.84676488,0.00024658,2]
[342009069,1731360658361,-522.84676488,0.00024658,2]
[342009070,1731360658371,-522.84676488,0.00024658,2]
[342009071,1731360658381,-522.84676488,0.00024658,2]
[342009072,1731360658391,-522.84676488,0.00024658,2]
[342009073,1731360658401,-522.84676488,0.00024658,2]
[342009074,1731360658411,-522.84676488,0.00024658,2]
[342009075,1731360658420,-522.84676488,0.00024658,2]
[342009076,1731360658429,-522.84676488,0.00024658,2]
[342009077,1731360658439,-522.84676488,0.00024658,2]
[342009078,1731360658448,-522.84676488,0.00024658,2]
[342009079,1731360658458,-522.84676488,0.00024658,2]
[342009080,1731360658467,-522.84676488,0.00024658,2]
[342009081,1731360658477,-522.84676488,0.00024658,2]
[342009082,1731360658487,-522.84676488,0.00024658,2]
[342009083,1731360658497,-522.84676488,0.00024658,2]
[342009084,1731360658507,-522.84676488,0.00024658,2]
[342009085,1731360658517,-522.84676488,0.00024658,2]
[342009086,1731360658527,-522.84676488,0.00024658,2]
[342009087,1731360658536,-522.84676488,0.00024658,2]
[342009088,1731360658546,-522.84676488,0.00024658,2]
[342009089,1731360658556,-522.84676488,0.00024658,2]
[342009090,1731360658566,-522.84676488,0.00024658,2]
[342009091,1731360658576,-522.84676488,0.00024658,2]
[342009092,1731360658590,-522.84676488,0.00024658,2]
[342009093,1731360658600,-522.84676488,0.00024658,2]
[342009094,1731360658613,-522.84676488,0.00024658,2]
[342009095,1731360658622,-522.84676488,0.00024658,2]
[342009096,1731360658632,-522.84676488,0.00024658,2]
[342009097,1731360658642,-522.84676488,0.00024658,2]
[342009098,1731360658653,-522.84676488,0.00024658,2]
[342009099,1731360658664,-522.84676488,0.00024658,2]
[342009100,1731360658673,-522.84676488,0.00024658,2]
[342009101,1731360658685,-522.84676488,0.00024658,2]
[342009102,1731360658695,-522.84676488,0.00024658,2]
[342009103,1731360658704,-522.84676488,0.00024658,2]
[342009104,1731360658714,-522.84676488,0.00024658,2]
[342009105,1731360658723,-522.84676488,0.00024658,2]
[342009106,1731360658732,-522.84676488,0.00024658,2]
[342009107,1731360658742,-522.84676488,0.00024658,2]
[342009108,1731360658752,-836.55482381,0.00024658,2]
[342009109,1731360658762,-836.55482381,0.00024658,2]
[342009110,1731360658771,-836.55482381,0.00024658,2]
[342009111,1731360658780,-836.55482381,0.00024658,2]
[342009112,1731360658894,-836.55482381,0.00024658,2]
[342009113,1731360658905,-836.55482381,0.00024658,2]
[342009114,1731360658915,-836.55482381,0.00024658,2]
[342009115,1731360658924,-836.55482381,0.00024658,2]
[342009116,1731360658933,-499.99999999,0.00024658,2]
[342009117,1731360658943,-25614.0,0.000247,14]
[342009118,1731360658953,-7760.22,0.000247,14]
[342009119,1731360658963,-3674.3,0.000247,14]
[342009120,1731360658973,-1831.75,0.000247,14]
[342009121,1731360658987,-3075.71,0.000247,2]
[342009122,1731360658996,-587.0,0.00024816,2]
[342009123,1731360659007,-1500.0,0.00024847,2]
[342009124,1731360659019,-1500.0,0.00024847,2]
[342009125,1731360659028,-447.15735062,0.00024847,2]
[342009126,1731360659038,-1500.0,0.00024847,2]
[342009127,1731360659048,-1500.0,0.00024847,2]
[342009128,1731360659058,-1500.0,0.00024847,2]
[342009129,1731360659069,-1500.0,0.00024847,2]
[342009130,1731360659079,-766.98871919,0.00024931,7]
[342009131,1731360659091,-500.0,0.00024931,2]
[342009132,1731360659101,-547.53,0.00024931,2]
[342009133,1731360659111,-500.0,0.00024931,2]
[342009134,1731360659121,-500.0,0.00024931,2]
[342009135,1731360659131,-738.39,0.00024931,2]
[342009136,1731360659142,-500.0,0.00024931,2]
[342009137,1731360659152,-500.0,0.00024931,2]
[342009138,1731360659162,-500.0,0.00024931,2]
[342009139,1731360659173,-500.0,0.00024931,2]
[342009140,1731360659182,-500.0,0.00024931,2]
[342009141,1731360659192,-1866.48,0.00024931,2]
[342009142,1731360659202,-500.0,0.00024931,2]